[Event "Polish Youth B18 Championship 2023"]
[Site "Jastrzebia Gora"]
[Date "2023.03.14"]
[Round "4.12"]
[White "Lis, Maksymilian"]
[Black "Wojdak, Jan"]
[Result "1/2-1/2"]
[ECO "E14"]
[WhiteElo "1784"]
[BlackElo "2097"]
[Annotator "TA"]
[PlyCount "152"]
[EventDate "2023.03.11"]
[EventType "swiss"]
[EventCountry "POL"]
[SourceTitle "playchess.com"]
[Source "ChessBase"]
[SourceQuality "1"]
[TimeControl "40/5400+30:1800+30"]

{[%evp 23,152,-17,-12,-15,-20,-39,-28,-59,-58,-72,-70,-104,-101,-104,-83,-82,-88,-99,-69,-73,-72,-85,-4,0,0,0,17,0,0,0,0,0,0,0,0,-56,-13,-70,-56,-57,31,41,125,125,125,125,125,125,123,122,118,90,96,55,212,201,163,21,21,21,48,11,6,0,8,14,37,0,47,65,108,116,135,115,248,-8,-8,-8,-8,-8,0,-8,0,0,0,0,0,-8,-8,-8,-8,-8,-8,-8,0,0,0,0,0,0,0,-8,-8,-8,0,0,0,0,0,0,0,0,0,0,0,0,0,0,0,0,0,0,0,0,0,0,0,0,0,0,0]} 1. d4 {[%emt 0:00:05]} Nf6 {[%emt 0:00:20]} 2. Nf3 {[%emt 0:00:14]} e6 {[%emt 0:00:11]} 3. c4 {[%emt 0:00:11]} b6 {[%emt 0:04:32]} 4. e3 {[%emt 0:01:40]} Bb7 {[%emt 0:00:08]} 5. Bd3 {[%emt 0:00:05]} d5 {[%emt 0:00:07]} 6. O-O {[%emt 0:00:11]} Bd6 {[%emt 0:00:12]} 7. Nc3 {[%emt 0:00:25]} Nbd7 {[%emt 0:02:07]} 8. cxd5 {[%emt 0:04:48]} exd5 {[%emt 0:00:38]} 9. b3 {[%emt 0:00:56]} a6 {[%emt 0:00:31]} 10. Bb2 {[%emt 0:00:37]} O-O {[%emt 0:00:46][%cal Bh8f8,Bf8f6,Bf6h6][%mdl 32]} 11. Ne2 {[%emt 0:01:20]} Ne4 {[%emt 0:01:59]} 12. Rc1 {[%emt 0:01:23]} Qe7 {[%emt 0:03:02]} 13. Ng3 {[%emt 0:01:26] E14: Queen's Indian: Classical Variation (4 e3).} f5 {[%emt 0:01:35]} 14. Re1 {[%emt 0:09:07]} Rf6 {[%emt 0:21:53] [#]} 15. Nd2 $146 {[%emt 0:07:08] Black has an edge.} ({Predecessor:} 15. Re2 Raf8 16. Rec2 c6 17. Qe2 a5 18. Rf1 Rh6 19. Qd1 Qe8 20. Bxe4 fxe4 21. Ng5 Ba6 22. Re1 Bd3 23. Rxc6 Bxg3 24. Rxh6 Bxf2+ 25. Kh1 Bxe1 {0-1 Bodicker,R (2019)-Van Foreest,L (2367) Amsterdam Science Park op-A 2016 (8)}) 15... Raf8 {[%emt 0:05:01]} 16. Ngf1 {[%emt 0:02:04]} Rh6 {[%emt 0:05:33][%cal Od6h2] Strongly threatening ...Bxh2+!} 17. f4 {[%emt 0:09:37]} (17. f3 $2 Bxh2+ 18. Nxh2 Qh4 19. Bxe4 (19. Ndf1 Qf2+ 20. Kh1 Rxh2+ 21. Kxh2 Rf6) 19... Qxh2+ 20. Kf2 Qh4+ 21. Ke2 dxe4 $19) 17... g5 $1 {[%emt 0:15:42]} 18. fxg5 {[%emt 0:16:09]} Qxg5 {[%emt 0:00:50][%cal Oh6h2] And now ...Rxh2! would win.} 19. Nf3 {[%emt 0:01:20]} Qg7 {[%emt 0:05:00]} 20. Qe2 {[%emt 0:01:00]} Rg6 {[%emt 0:01:47]} 21. Rc2 {[%emt 0:02:20]} a5 {[%emt 0:02:29]} 22. Bb5 {[%emt 0:01:02]} Nb8 {[%emt 0:00:43]} ({Black should play} 22... Ndf6 $17 {...Ng4 would be deadly.} 23. Ne5 Rh6) 23. Ne5 $11 {[%emt 0:03:35]} Re6 {[%emt 0:06:41][%cal Oc7c6]} 24. Nd2 $1 {[%emt 0:01:46]} Nxd2 {[%emt 0:01:09]} (24... c6 $5 25. Bd3 $8 Bxe5 26. dxe5 c5 $11) 25. Rxd2 {[%emt 0:00:54]} Bb4 {[%emt 0:04:48]} (25... c6 $5 26. Bd3 $8 Nd7 $11) 26. Rf1 {[%emt 0:00:40]} Bxd2 {[%emt 0:00:06]} 27. Qxd2 {[%emt 0:00:04]} Ba6 {[%emt 0:02:19]} 28. Bxa6 {[%emt 0:01:32]} Nxa6 {[%emt 0:00:04]} 29. Rf3 {[%emt 0:00:20]} (29. Qe2 $11 Nb4 30. Qb5) 29... Kh8 {[%emt 0:01:10]} 30. Qf2 {[%emt 0:00:10]} ({Better is} 30. Ba3 $11 Nb4 31. Bxb4 axb4 32. Qxb4) 30... Ref6 {[%emt 0:01:19]} 31. Qe2 {[%emt 0:04:22]} Nb8 {[%emt 0:03:01]} (31... Nb4 $15 32. a3 Nc6) 32. Ba3 $14 {[%emt 0:00:50][%cal Of3g3] Hoping for Rg3!} Rg8 {[%emt 0:05:02]} (32... Re8 $1 $14) 33. Rg3 $36 {[%emt 0:01:29][%mdl 2048] Black is under strong pressure.} Qh6 {[%emt 0:00:04]} 34. Be7 {[%emt 0:00:14][%cal Og3h3]} Rxg3 {[%emt 0:00:12]} 35. Bxf6+ {[%emt 0:00:06]} Qxf6 {[%emt 0:00:04]} 36. hxg3 {[%emt 0:00:06][%mdl 4096] Endgame KQN-KQN} Kg7 {[%emt 0:02:30]} 37. Qb5 {[%emt 0:00:26] Prevents Nc6.} Qe6 {[%emt 0:00:12] Against Qe8} 38. Kf2 {[%emt 0:01:15]} Kf8 $2 {[%emt 0:02:22]} (38... Kf6 $14) 39. b4 $1 $18 {[%emt 0:00:51]} axb4 {[%emt 0:00:42][%cal Oc7c5]} 40. Qxb4+ {[%emt 0:00:00]} ({Only move:} 40. Qa4 $1 $18) 40... Ke8 $1 $11 {[%emt 0:00:00]} 41. Qa4+ {[%emt 0:01:13]} (41. Qa3 {is more complex.} Nd7 42. Qa8+ Ke7 43. Nc6+) 41... Kd8 {[%emt 0:03:31]} 42. Qa8 {[%emt 0:11:33]} (42. Qa7 $5 {[%cal Ra7b8]} Kc8 43. Qa8 $14) 42... Kc8 {[%emt 0:00:22]} 43. Kf3 {[%emt 0:00:56]} Qd6 {[%emt 0:04:57]} 44. a3 {[%emt 0:00:16]} c5 {[%emt 0:04:32]} 45. Qa4 {[%emt 0:00:43]} c4 {[%emt 0:02:32]} (45... Qe6 $11) 46. Qe8+ $14 {[%emt 0:00:32]} Kb7 {[%emt 0:01:42]} 47. Qf7+ {[%emt 0:00:49]} Ka8 {[%emt 0:01:27]} 48. Qxf5 {[%emt 0:01:10] White is much more active.} ({Don't take} 48. Qxh7 Qxa3 49. Qxf5 c3 $14) 48... Qxa3 {[%emt 0:02:42] [#]} (48... c3 $16) 49. Nxc4 $2 {[%emt 0:11:13]} dxc4 $11 {[%emt 0:00:33] The position is equal.} 50. Qd5+ {[%emt 0:01:57]} Ka7 {[%emt 0:00:11]} 51. Qf7+ {[%emt 0:00:10]} Ka6 {[%emt 0:03:45]} 52. Qxc4+ {[%emt 0:00:04]} Kb7 {[%emt 0:00:46] aiming for ...Qf8+.} 53. Qf7+ {[%emt 0:00:48]} Kc8 {[%emt 0:00:40]} 54. Qxh7 {[%emt 0:02:36]} Qf8+ {[%emt 0:00:35]} 55. Ke4 {[%emt 0:00:28]} Nd7 {[%emt 0:00:14] ( -> ...Nf6+)} 56. Qf5 {[%emt 0:01:48]} Qd6 {[%emt 0:01:17]} 57. g4 {[%emt 0:01:20]} Qc6+ {[%emt 0:02:07]} 58. Kd3 {[%emt 0:01:45]} (58. d5 Qc4+ 59. Kf3 b5 $17) 58... b5 {[%emt 0:01:23]} 59. g5 {[%emt 0:02:09]} ({Don't play} 59. Ke2 b4 60. g5 Qxg2+ 61. Kd3 Qa2 $17) 59... Qc4+ {[%emt 0:00:10]} 60. Kd2 $1 {[%emt 0:00:29]} Kd8 {[%emt 0:00:24]} 61. g6 {[%emt 0:01:20] g7 is the strong threat.} Qa2+ {[%emt 0:01:05]} 62. Qc2 {[%emt 0:00:23]} Qd5 {[%emt 0:00:35]} 63. Kc3 {[%emt 0:02:05]} Qc4+ {[%emt 0:02:19]} (63... Qe6 {feels hotter.} 64. Qd3 Nf6 65. g7 Ke7) 64. Kb2 {[%emt 0:00:14]} Qb4+ {[%emt 0:00:50]} 65. Qb3 {[%emt 0:00:37]} Qd2+ {[%emt 0:00:15]} 66. Kb1 {[%emt 0:00:54]} Qe1+ {[%emt 0:01:18]} 67. Ka2 {[%emt 0:00:32]} Qf2+ {[%emt 0:00:37]} 68. Ka3 {[%emt 0:00:25]} Qxg2 {[%emt 0:00:22]} 69. Qg8+ {[%emt 0:00:13]} Kc7 {[%emt 0:00:37]} 70. g7 {Threatens to win with Qf7.} Qg5 {[%emt 0:02:06]} 71. Qf7 {[%emt 0:03:56]} Qxe3+ {[%emt 0:00:05]} 72. Kb4 {[%emt 0:00:22]} Qxd4+ {[%emt 0:00:45]} 73. Kxb5 {[%emt 0:01:02]} Qb2+ {[%emt 0:00:27]} 74. Ka4 {[%emt 0:00:13]} Qa1+ {[%emt 0:00:15]} 75. Kb3 {[%emt 0:00:19]} Qb1+ {[%emt 0:00:07]} 76. Ka3 {[%emt 0:00:40] Black must now prevent Qf4+.} Qd3+ {[%emt 0:00:22] Weighted Error Value: White=0.17 (very precise) /Black=0.19 (very precise)} 1/2-1/2

[Event "Polish Youth B18 Championship 2023"]
[Site "Jastrzebia Gora"]
[Date "2023.03.14"]
[Round "4.13"]
[White "Stachecki, Mikolaj"]
[Black "Smetek, Michal"]
[Result "1/2-1/2"]
[ECO "B15"]
[WhiteElo "2015"]
[BlackElo "1787"]
[Annotator "TA"]
[PlyCount "76"]
[EventDate "2023.03.11"]
[EventType "swiss"]
[EventCountry "POL"]
[SourceTitle "playchess.com"]
[Source "ChessBase"]
[SourceQuality "1"]
[TimeControl "40/5400+30:1800+30"]

{[%evp 14,76,27,33,30,31,58,31,47,32,68,33,43,40,49,-65,-58,-147,-88,-91,-97,-105,-70,-80,-114,-192,-174,-187,-143,-147,-102,-93,-92,-140,-108,-94,-81,-72,-35,-53,0,0,0,0,0,0,0,0,0,0,0,0,0,0,0,0,404,0,0,0,0,0,0,0,0]} 1. e4 {[%emt 0:00:08]} c6 {[%emt 0:00:16]} 2. d4 {[%emt 0:00:16]} d5 {[%emt 0:00:04]} 3. Nc3 {[%emt 0:00:11]} dxe4 {[%emt 0:00:20]} 4. Nxe4 {[%emt 0:00:06]} Nf6 {[%emt 0:00:28]} 5. Nxf6+ {[%emt 0:00:11]} exf6 {[%emt 0:00:05]} 6. c3 {[%emt 0:00:17]} Bd6 7. Bd3 {[%emt 0:00:15]} O-O {[%emt 0:00:29]} 8. Qc2 {[%emt 0:00:10] Active counter play!} Re8+ {[%emt 0:00:14] B15: Caro-Kann: 3 Nc3: 3...g6 and 3...dxe4 4 Nxe4 Nf6 5 Nxf6+ exf6.} 9. Ne2 {[%emt 0:00:14]} h5 {[%emt 0:00:22]} 10. Be3 {[%emt 0:00:21]} Qc7 {[%emt 0:05:21] White is slightly better.} 11. O-O-O {[%emt 0:02:51]} c5 {[%emt 0:08:58] [#]} 12. Ng3 $146 {[%emt 0:08:57]} ({Predecessor:} 12. Qa4 Bd7 13. Bb5 Bxb5 14. Qxb5 Na6 15. Ng3 g6 16. dxc5 Bxc5 17. Bd4 Re6 18. f3 {0-1 Noshin,A (2004)-Manon,R (2162) Dhaka Sheikh Hasina op 2021 (8)}) 12... cxd4 {[%emt 0:12:33]} 13. Bh7+ $1 {[%emt 0:17:45]} ({Much worse is} 13. Bxd4 Nc6 $11) 13... Kf8 {[%emt 0:09:20]} 14. Bxd4 {[%emt 0:20:58]} (14. Rxd4 $14 Nc6 15. Rh4) 14... Nc6 $15 {[%emt 0:05:54]} 15. Bf5 {[%emt 0:06:51]} ({Better is} 15. Be3 $1 $15) 15... Nxd4 {[%emt 0:04:49]} ({Black should play} 15... h4 16. Bxc8 hxg3) 16. Rxd4 $17 {[%emt 0:00:14]} Be5 {[%emt 0:03:22]} 17. Rdd1 {[%emt 0:13:00]} Bxf5 {[%emt 0:06:45]} 18. Qxf5 {[%emt 0:02:22]} g6 {[%emt 0:00:35]} 19. Qd7 {[%emt 0:04:18]} (19. Qc2 $17 {was worth a try.}) 19... Qb6 $19 {[%emt 0:09:16]} 20. Qd2 {[%emt 0:02:32]} f5 {[%emt 0:09:37]} 21. Rhe1 {[%emt 0:00:48]} Qc7 {[%emt 0:02:06]} 22. Kb1 {[%emt 0:01:36]} Bf6 {[%emt 0:03:00]} 23. h3 {[%emt 0:04:02]} (23. Nf1 $142) 23... Kg7 {[%emt 0:00:58]} 24. Ne2 {[%emt 0:00:50]} b5 {[%emt 0:05:02]} 25. Nf4 {[%emt 0:02:13]} Qc4 {[%emt 0:05:31] ...Rad8 would be deadly.} 26. Nd5 {[%emt 0:02:42]} Rxe1 {[%emt 0:00:13]} (26... Red8 $15) 27. Qxe1 $11 {[%emt 0:00:09]} Rd8 {[%emt 0:04:11]} 28. Nxf6 {[%emt 0:00:21]} Rxd1+ {[%emt 0:00:09]} 29. Qxd1 {[%emt 0:00:03]} Kxf6 {[%emt 0:00:15][%mdl 4096] Endgame KQ-KQ} 30. f3 {[%emt 0:07:45] Inhibits Qe4+.} f4 {[%emt 0:02:08]} 31. Qe1 {[%emt 0:02:56]} Qd3+ {[%emt 0:02:05]} 32. Kc1 {[%emt 0:00:10]} Kf5 {[%emt 0:01:08]} 33. b3 {[%emt 0:00:38]} h4 {[%emt 0:00:44]} 34. Kb2 {[%emt 0:00:21]} g5 $2 {[%emt 0:00:36][%mdl 8192] [#]} (34... Kg5 $11 {and Black stays safe.}) 35. a4 $2 {[%emt 0:00:27]} (35. Qb1 $1 $18 {[%cal Rb1d3]} Qxb1+ 36. Kxb1) 35... bxa4 {[%emt 0:00:27] The position is equal.} 36. bxa4 {[%emt 0:00:04] Strongly threatening Qb1.} Qc4 {[%emt 0:00:29]} 37. Qb1+ {[%emt 0:01:00]} Kf6 {[%emt 0:00:25]} 38. Qd1 {[%emt 0:00:33] Black must now prevent Qd4+.} Kg6 {[%emt 0:00:38] Whites escaped into a draw.   Weighted Error Value: White=0.46/Black=0.37} 1/2-1/2

[Event "Polish Youth B18 Championship 2023"]
[Site "Jastrzebia Gora"]
[Date "2023.03.14"]
[Round "4.14"]
[White "Madajczak, Piotr"]
[Black "Krasniewski, Szymon"]
[Result "1/2-1/2"]
[ECO "A10"]
[WhiteElo "1897"]
[BlackElo "1771"]
[Annotator "NA RC COMBH"]
[PlyCount "106"]
[EventDate "2023.03.11"]
[EventType "swiss"]
[EventCountry "POL"]
[SourceTitle "playchess.com"]
[Source "ChessBase"]
[SourceQuality "1"]
[TimeControl "40/5400+30:1800+30"]

1. c4 {[%emt 0:00:17]} g6 {[%emt 0:00:02]} 2. Nc3 {[%emt 0:00:11]} Bg7 {[%emt 0:00:03]} 3. g3 {[%emt 0:00:09]} Nf6 {[%emt 0:00:04]} 4. Bg2 {[%emt 0:00:08]} O-O {[%emt 0:00:05]} 5. d3 {[%emt 0:00:08]} d6 {[%emt 0:00:17]} 6. e3 {[%emt 0:00:15]} e5 {[%emt 0:00:26]} 7. Nge2 {[%emt 0:00:12]} c6 {[%emt 0:00:22] 7...c6 scores better than 7...Nc6.} 8. O-O {[%emt 0:00:27]} Re8 {[%emt 0:01:26]} 9. b4 {[%emt 0:03:48]} d5 {[%emt 0:04:55]} 10. cxd5 {[%emt 0:05:24]} Nxd5 {[%emt 0:01:02]} 11. Nxd5 {[%emt 0:01:02]} cxd5 {[%emt 0:00:01] [#]} 12. d4 $146 {[%emt 0:03:07]} ({Predecessor:} 12. Rb1 Be6 13. b5 Nd7 14. a4 Rc8 15. Ba3 Nf6 16. d4 e4 17. h3 Qd7 18. Nf4 {0-1 Fuhrmann,F (1537)-Pienski,O (2004) Blankenese op 3rd 2019 (1.13)}) 12... exd4 {[%emt 0:04:54]} 13. Nxd4 {[%emt 0:13:06]} Nc6 {[%emt 0:01:31]} 14. Ba3 {[%emt 0:04:14]} Nxd4 {[%emt 0:02:26]} 15. exd4 {[%emt 0:00:08]} Bf5 {[%emt 0:02:26]} 16. Qd2 {[%emt 0:10:21]} Be4 {[%emt 0:11:08]} 17. f3 {[%emt 0:07:19]} Bf5 {[%emt 0:00:24]} 18. Rac1 {[%emt 0:00:53]} Qd6 {[%emt 0:10:53]} 19. g4 {[%emt 0:30:53]} Bd7 {[%emt 0:00:18]} 20. Rc2 {[%emt 0:00:23]} Rac8 {[%emt 0:02:31]} 21. Rfc1 {[%emt 0:01:59]} Qf6 {[%emt 0:04:47]} 22. Bb2 {[%emt 0:00:47]} Rxc2 {[%emt 0:00:18]} 23. Rxc2 {[%emt 0:00:39]} Bb5 {[%emt 0:01:33]} 24. Qc1 {[%emt 0:07:01]} Bc4 {[%emt 0:01:21]} 25. Bc3 {[%emt 0:02:36]} Qh4 {[%emt 0:01:43]} 26. Rf2 {[%emt 0:01:21]} Bh6 {[%emt 0:02:02]} 27. Bd2 {[%emt 0:00:02]} Bxd2 {[%emt 0:00:33]} 28. Qxd2 {[%emt 0:00:16]} Qe7 {[%emt 0:00:23]} 29. h3 {[%emt 0:05:47]} Qe1+ {[%emt 0:03:38]} 30. Kh2 {[%emt 0:00:02]} Re6 {[%emt 0:01:23]} 31. Kg3 {[%emt 0:02:24]} Qxd2 {[%emt 0:01:00]} 32. Rxd2 {[%emt 0:00:02]} Ra6 {[%emt 0:00:28]} 33. g5 {[%emt 0:00:52]} f6 {[%emt 0:01:25]} 34. h4 {[%emt 0:00:23]} Rxa2 {[%emt 0:00:33]} 35. Rxa2 {[%emt 0:00:42]} Bxa2 {[%emt 0:00:01]} 36. Bh3 {[%emt 0:00:19]} Kf7 {[%emt 0:01:20]} 37. Kf4 {[%emt 0:00:46]} b6 {[%emt 0:02:13]} 38. Ke3 {[%emt 0:00:21]} a5 {[%emt 0:01:03]} 39. bxa5 {[%emt 0:00:01]} bxa5 {[%emt 0:00:01]} 40. Kd2 {[%emt 0:00:00]} fxg5 {[%emt 0:00:00]} 41. hxg5 {[%emt 0:00:27]} h5 {[%emt 0:09:35]} 42. gxh6 {[%emt 0:07:48]} Kg8 {[%emt 0:00:07]} 43. f4 {[%emt 0:05:43]} Kh7 {[%emt 0:00:20]} 44. Be6 {[%emt 0:06:09]} Kxh6 {[%emt 0:00:13]} 45. Kc3 {[%emt 0:00:20]} Kg7 {[%emt 0:02:20]} 46. Kb2 {[%emt 0:01:04]} Kf6 {[%emt 0:00:25]} 47. Bh3 {[%emt 0:00:42]} Bc4 {[%emt 0:00:42]} 48. Ka3 {[%emt 0:00:27]} Bb5 {[%emt 0:00:32]} 49. Bg4 {[%emt 0:00:37]} Ke7 {[%emt 0:00:49]} 50. Bf3 {[%emt 0:00:35]} Bc6 {[%emt 0:01:12]} 51. Bg2 {[%emt 0:00:21]} Kd6 {[%emt 0:00:44]} 52. Bf1 $15 {[%emt 0:01:16]} Be8 {[%emt 0:02:10]} 53. Be2 {[%emt 0:00:21]} Bd7 {[%emt 0:00:23]} 1/2-1/2

[Event "Polish Youth B18 Championship 2023"]
[Site "Jastrzebia Gora"]
[Date "2023.03.14"]
[Round "4.15"]
[White "Paprocki, Antoni"]
[Black "Kozlowski, Franciszek"]
[Result "1/2-1/2"]
[ECO "E01"]
[WhiteElo "2255"]
[BlackElo "1829"]
[Annotator "TA"]
[PlyCount "99"]
[EventDate "2023.03.11"]
[EventType "swiss"]
[EventCountry "POL"]
[SourceTitle "playchess.com"]
[Source "ChessBase"]
[SourceQuality "1"]
[TimeControl "40/5400+30:1800+30"]

{[%evp 14,99,0,10,42,17,11,1,1,0,0,-15,-12,-19,0,-12,0,0,0,0,7,-2,-2,-4,-10,0,7,-2,4,6,0,2,5,5,6,0,8,0,0,0,2,0,0,0,8,0,0,0,0,0,0,0,0,0,0,0,0,0,0,0,0,0,0,0,0,0,0,0,0,0,0,0,0,0,0,0,0,0,0,0,0,0,0,0,0,0,0,22]} 1. d4 {[%emt 0:00:41]} Nf6 {[%emt 0:00:22]} 2. c4 {[%emt 0:00:07]} e6 {[%emt 0:00:07]} 3. g3 {[%emt 0:00:07]} d5 {[%emt 0:00:34]} 4. Bg2 {[%emt 0:00:07]} Bb4+ {[%emt 0:00:38]} 5. Nd2 {[%emt 0:00:18]} O-O {[%emt 0:01:16]} 6. Ngf3 b6 7. Ne5 Bb7 {[%cal Bc8b7,Bb7d5,Bd5e4][%mdl 32]} 8. O-O Nfd7 {Recently 8...a5 got a lot of attention. E16: Queen's Indian: 4 g3 Bb7 5 Bg2 Bb4+.} 9. Ndf3 {[#]} (9. Nd3 $5 {[%cal Rd3b4]} Be7 10. cxd5 Bxd5 11. e4 $14) 9... Be7 $146 {The position is equal.} ({Predecessor:} 9... dxc4 10. Qc2 g6 11. Nxc4 Be7 12. Rd1 Bf6 13. Bf4 Qe7 14. Rac1 Na6 15. Qa4 g5 16. Be3 {½-½ Soderstrom,A (2292)-Wernberg,H (2316) SWE-ch U20 Uppsala 2022 (4)}) 10. cxd5 Bxd5 11. Nxd7 (11. Qd3 {feels hotter.} c5 12. Nxd7 Nxd7 13. e4) 11... Nxd7 12. Qc2 Nf6 13. Bg5 Be4 14. Qa4 h6 {[#] ...b5 is the strong threat.} 15. Bxf6 Bxf6 16. Rac1 c6 17. Rfd1 Qd5 18. Ne1 Bxg2 19. Nxg2 Qe4 20. Kf1 Rfd8 (20... Rac8 {seems wilder.} 21. Qxa7 Bxd4 22. Qa4 c5) 21. Qxc6 Qxc6 22. Rxc6 Rxd4 23. Rxd4 Bxd4 $11 {[%mdl 4096] Endgame KRB-KRN} 24. b3 b5 25. e3 Bb6 26. Nf4 Rd8 27. Ke2 Kf8 28. Nd3 Ke7 29. Ne5 {[%cal Oc6b6]} Rd5 30. f4 Rc5 31. Rxc5 Bxc5 {KB-KN} 32. b4 Bb6 33. Kd3 f6 34. Nc6+ Kd6 35. Nd4 Bxd4 36. Kxd4 {KP-KP} h5 37. Ke4 g6 38. h3 Kc6 39. g4 Kd6 40. gxh5 gxh5 41. f5 e5 42. Kd3 Kd5 {[#] ...e4+ would be deadly.} 43. e4+ Kd6 44. Ke3 Ke7 45. Kf3 Kf7 46. Kg3 Kg7 47. Kh4 Kh6 48. a3 a6 49. Kg3 Kg5 {[%emt 1:50:42]} 50. h4+ {[%emt 1:44:22] A rather calm draw.   Weighted Error Value: White=0.03 (flawless) /Black=0.03 (flawless)} 1/2-1/2

[Event "Polish Youth B18 Championship 2023"]
[Site "Jastrzebia Gora"]
[Date "2023.03.14"]
[Round "4.16"]
[White "Karut, Kacper"]
[Black "Malik, Maciej"]
[Result "1-0"]
[ECO "B47"]
[WhiteElo "1904"]
[BlackElo "2163"]
[Annotator "TA"]
[PlyCount "55"]
[EventDate "2023.03.11"]
[EventType "swiss"]
[EventCountry "POL"]
[SourceTitle "playchess.com"]
[Source "ChessBase"]
[SourceQuality "1"]
[TimeControl "40/5400+30:1800+30"]

{[%evp 18,55,35,8,45,62,68,71,68,68,80,79,84,78,113,94,143,129,142,129,458,430,464,462,452,456,841,845,845,842,835,831,813,818,1057,758,896,764,1261,1177]} 1. e4 {[%emt 0:00:01]} c5 {[%emt 0:00:10]} 2. Nf3 {[%emt 0:00:06]} Nc6 {[%emt 0:00:23]} 3. d4 {[%emt 0:00:04]} cxd4 {[%emt 0:00:08]} 4. Nxd4 {[%emt 0:00:04]} e6 {[%emt 0:00:15]} 5. Nc3 {[%emt 0:00:09]} Qc7 {[%emt 0:00:49]} 6. Be2 {[%emt 0:00:13]} a6 {[%emt 0:01:18]} 7. O-O {[%emt 0:00:24]} Nf6 {[%emt 0:02:32]} 8. Be3 {[%emt 0:00:10]} Bb4 {[%emt 0:02:26]} 9. Nxc6 {[%emt 0:00:30]} bxc6 {[%emt 0:00:58]} 10. f4 {[%emt 0:00:13]} d5 {[%emt 0:23:05] B49: Sicilian: Taimanov: 5 Nc3 Qc7 6 Be3 a6 7 Be2.} 11. e5 {[%emt 0:00:17]} Nd7 {[%emt 0:00:23]} 12. Na4 $1 {[%emt 0:02:43]} O-O {[%emt 0:18:52] White is better.} 13. c4 {[%emt 0:00:07]} Be7 {[%emt 0:01:50]} 14. cxd5 {[%emt 0:05:14]} cxd5 {[%emt 0:00:56]} 15. Rc1 {[%emt 0:00:47]} Qb8 {[%emt 0:00:34]} 16. Rc3 {[%emt 0:01:00]} a5 {[%emt 0:07:53] [#]} (16... Bb7 $142) 17. Qc2 $146 {[%emt 0:09:02]} ({Predecessor:} 17. Rb3 Qc7 18. Qc1 Qxc1 19. Rxc1 Rd8 20. Rc7 Bf8 21. Kf1 Rb8 22. Rxb8 Nxb8 23. Bb6 {1-0 Alsina Leal,D (2517)-Chalmeta Ugas,R (2269) Catalunya-chT Gp2 2016 (6.3)}) 17... f6 {[%emt 0:11:13]} 18. Bg4 {[%emt 0:12:22] White is much more active. The black rooks are badly placed.} Nxe5 $2 {[%emt 0:06:24][%mdl 8192] [#]} 19. fxe5 $18 {[%emt 0:03:24] White is clearly winning.} Qxe5 {[%emt 0:00:58]} 20. Nb6 {[%emt 0:04:20][%csl LRa8,LRc8]} Rb8 {[%emt 0:18:19]} 21. Nxc8 {[%emt 0:00:51]} Bb4 {[%emt 0:00:46]} (21... Rbxc8 $142 22. Rxc8 Qxe3+ 23. Kh1 Rxc8 24. Qxc8+ Kf7 25. Bh5+ g6) 22. Bf4 {[%emt 0:04:14]} Qd4+ {[%emt 0:00:05]} 23. Kh1 {[%emt 0:01:00]} e5 {[%emt 0:00:24]} 24. Be6+ {[%emt 0:00:26]} Kh8 {[%emt 0:00:01]} 25. Be3 {[%emt 0:00:19]} Qh4 {[%emt 0:00:18]} 26. Bf2 Qf4 {[%emt 0:01:29]} 27. Rf3 {[%emt 0:01:26]} Qg5 {[%emt 0:00:19]} 28. Be3 {[%emt 0:00:27] Black got outplayed after the opening.   Weighted Error Value: White=0.08 (flawless) /Black=0.64} 1-0